Cogmind - Beta 13 @@@ ROGUE MODE // 2024.06.30 @ 16:08:50 Player: arkn Result: Destroyed by S-27 Virus with Autogun Performance ------------- Evolutions (5) 2500 Regions Visited (9) 1800 Robots Destroyed (146) 730 Value Destroyed (4840) 4840 Prototype IDs (31) 620 Alien Tech Used (1) 200 Bonus (812) 812 TOTAL SCORE: 11502 Bonus ------- High Alert Combat Kills 408 Follower Combat Kills 115 Aligned with FarCom 300 Friendly Fire -11 Cogmind --------- Core Integrity 0/1000 Matter 106/300 Energy 98/100 System Corruption 27% Temperature Cool (0) Movement Core (50) Location -5/Upper Caves Parts ------- > --- POWER (2) -------- (None) > --- PROPULSION (3) --- (None) > --- UTILITY (10) ----- Improved Coolant Injector Enhanced Optical Array Advanced Targeting Computer Advanced Melee Analysis Suite Improved Armor Integrity Analyzer > --- WEAPON (2) ------- (None) > --- INVENTORY (5) ---- Hardcell Cannon Hypervelocity Mass Driver Makeshift Hammer Peak State ------------ > --- POWER ------------ Cold Fusion Reactor Neutrino Core > --- PROPULSION ------- Improved Medium Treads Improved Medium Treads > --- UTILITY ---------- High-capacity Storage Unit Improved Trap Scanner Enhanced Optical Array Improved Signal Interpreter Advanced Melee Analysis Suite Armor Integrity Analyzer Layered Medium Armor Plating Medium Reactive Plating Hardlight Generator Improved Field Recycling Unit > --- WEAPON ----------- Enhanced Gauss Cannon Enhanced Gauss Cannon > --- INVENTORY -------- Field Propulsion Drive Nuclear Pulse Array Advanced Cryofiber Web Improved Coolant Injector Structural Scanner Improved Trap Scanner Improved Signal Interpreter Advanced Terrain Scan Processor Hardened Heavy Armor Plating Long-range Tractor Beam Heavy Machine Gun Mass Driver Mass Driver Rocket Array Powered Hammer Power Maul Great Axe Spear [Rating: 82] Favorites ----------- Power Improved Deuterium Engine Engine Improved Deuterium Engine Power Core Neutrino Core Reactor Cold Fusion Reactor Propulsion Compact Wheel Treads Light Treads Leg Aluminum Leg Wheel Compact Wheel Hover Unit Improved Gravmag System Flight Unit Nuclear Pulse Array Utility Armor Integrity Analyzer Device Hardlight Generator Storage Huge Storage Unit Processor Armor Integrity Analyzer Protection Medium Reactive Plating Weapon Gauss Cannon Energy Gun Heavy EM Pulse Gun Energy Cannon Improved EM Pulse Cannon Ballistic Gun Heavy Machine Gun Ballistic Cannon Gauss Cannon Launcher Heavy Missile Launcher Impact Weapon Power Maul Slashing Weapon Great Axe Build | -11 -10 -10 -10 -9 -8 -7 -6 -5 -5 ------- Run | Yrd Mat Min Exi Min Mat Fac Fac Fac Upp Slots Evolved 10 | . . . . . 4 2 2 2 . Power 1 | . . . . . . . 1 . . Propulsion 1 | . . . . . . 1 . . . Utility 8 | . . . . . 4 1 1 2 . Weapon . | . . . . . . . . . . Parts Attached 191 | 1 10 11 . 6 27 72 18 36 10 Power 18 | . . 1 . 2 1 8 2 4 . Engine 10 | . . 1 . 1 . 6 1 1 . Core 7 | . . . . 1 1 2 . 3 . Reactor 1 | . . . . . . . 1 . . Propulsion 39 | . 4 3 . 2 5 17 2 5 1 Treads 9 | . . . . . . 5 1 3 . Leg 7 | . 2 . . . 2 3 . . . Wheel 19 | . 2 3 . 2 3 9 . . . Hover 3 | . . . . . . . 1 2 . Flight 1 | . . . . . . . . . 1 Utility 75 | 1 2 1 . . 13 26 7 18 7 Device 38 | 1 . . . . 8 13 1 12 3 Storage 3 | . 2 . . . . . 1 . . Processor 15 | . . . . . 2 5 3 2 3 Hackware . | . . . . . . . . . . Protection 19 | . . 1 . . 3 8 2 4 1 Artifact . | . . . . . . . . . . Weapon 59 | . 4 6 . 2 8 21 7 9 2 Energy Gun 19 | . 4 1 . . 4 10 . . . Energy Cannon 1 | . . . . . . 1 . . . Ballistic Gun 17 | . . 3 . 2 2 4 4 1 1 Ballistic Cannon 6 | . . . . . . 2 . 4 . Launcher 2 | . . 1 . . . 1 . . . Special Weapon . | . . . . . . . . . . Impact Weapon 13 | . . 1 . . 2 3 3 3 1 Slashing Weapon 1 | . . . . . . . . 1 . Piercing Weapon . | . . . . . . . . . . Special Melee Weapon . | . . . . . . . . . . Unidentified Prototypes 9 | . . . . . 2 4 1 1 1 Parts Lost 72 | . 1 5 . 4 9 29 1 15 8 Power 9 | . . 1 . 1 1 4 . 2 . Propulsion 24 | . . 2 . 2 3 12 . 4 1 Utility 26 | . . . . . 3 10 . 8 5 Weapon 13 | . 1 2 . 1 2 3 1 1 2 Highest Loss Streak 8 | . 1 4 . 4 6 7 1 5 8 To Critical Strikes 2 | . . . . . . 1 . 1 . Average Slot Usage (%) 96 | . 99 99 100 95 96 96 98 94 53 Engine 6 | . 14 13 14 5 2 5 10 . . Core 1 | . . . . 7 6 1 . 4 . Reactor 1 | . . . . . . . 1 4 . Treads 5 | . . . . . . 2 18 13 . Leg 2 | . 14 . . . . 1 . . . Wheel 11 | . 13 27 28 26 16 16 . . . Device 9 | . 14 7 . . 17 9 3 9 9 Storage 8 | . 14 14 14 14 9 7 6 4 . Processor 22 | . . . . . 13 24 38 33 28 Protection 7 | . . 6 14 14 11 9 3 6 3 Energy Gun 4 | . 20 3 . . 9 4 . . . Ballistic Gun 6 | . 7 21 14 27 7 3 4 4 . Ballistic Cannon 2 | . . . . . . 4 5 1 . Impact Weapon 2 | . . 3 14 . 1 1 3 3 4 Naked Turns . | . . . . . . . . . . Heaviest Build 132 | 14 92 93 91 92 97 132 112 122 20 Greatest Support 80 | 20 32 32 20 26 26 69 69 80 13 Greatest Overweight (x) 19 | . 2 4 4 9 5 8 2 19 6 Average Overweight (x) 2 | . 1 3 4 3 3 3 1 . . Largest Inventory Capacity 25 | 8 25 25 25 25 25 25 25 20 5 Average Capacity 22 | 8 17 25 25 25 25 25 23 19 5 Most Carried 25 | 8 22 25 25 25 25 25 25 20 5 Average Carried 21 | 6 14 23 24 24 22 24 23 18 3 Final Capacity 25 | 8 25 25 25 25 25 25 20 5 5 Final Carried 25 | 8 21 25 25 24 25 19 20 5 3 Class Distribution -------------------- 41% | Mutant 29% | Skirmisher 12% | Scavenger-Mutant 8% | Assassin 5% | Scavenger-Skirmisher Dominant Class ---------------- Mutant | -10/Materials Mutant | -10/Mines Mutant | -10/Exiles Mutant | -9/Mines Mutant | -8/Materials Skirmisher | -7/Factory Scavenger-Mutant | -6/Factory Assassin | -5/Factory Derelict-Mutant | -5/Upper Caves Resources | -11 -10 -10 -10 -9 -8 -7 -6 -5 -5 ----------- Run | Yrd Mat Min Exi Min Mat Fac Fac Fac Upp Matter Collected 4686 | 222 148 160 . 146 303 1957 582 1118 50 Remotely 914 | . . . . . . 317 . 547 50 Salvage Created 5311 | 101 459 115 . 210 556 1782 800 1288 . Parts 299 | 11 37 11 . 7 35 120 29 49 . Haulers Intercepted 6 | . 1 . . . 2 1 1 1 . Recyclers Shooed 4 | 1 1 . . . 1 . . 1 . Parts Field Recycled 7 | . . . . . . . . 7 . Retrieved Matter 144 | . . . . . . . . 144 . Parts Self-Destructed . | . . . . . . . . . . Prevented . | . . . . . . . . . . Kills | -11 -10 -10 -10 -9 -8 -7 -6 -5 -5 ------- Run | Yrd Mat Min Exi Min Mat Fac Fac Fac Upp Combat Hostiles Destroyed 96 | . 7 7 . 10 8 39 7 18 . Melee 4 | . . . . . . 2 . 2 . Guns 53 | . 7 5 . 10 8 11 6 6 . Cannons 32 | . . . . . . 24 1 7 . AOE 6 | . . 2 . . . 2 . 2 . Classes Destroyed 16 | 2 7 . . 1 1 5 . . . Worker 12 | . 3 . . . . 8 . 1 . Builder 11 | . 2 . . . 1 7 . 1 . Tunneler 7 | 2 . . . 1 1 2 1 . . Hauler 6 | . 1 . . . 2 1 1 1 . Recycler 9 | 1 1 . . . . 2 2 3 . Mechanic 2 | . . . . . . 1 . 1 . Operator 2 | . 1 . . . . . 1 . . Watcher 9 | . 1 . . . 1 4 . 3 . Swarmer 19 | . 5 6 . . . 8 . . . Grunt 31 | . 2 1 . 2 6 10 2 8 . Sentry 12 | . . . . . 2 6 3 1 . Specialist 2 | . . . . . . 2 . . . Hunter 3 | . . . . . . 2 . 1 . Programmer 20 | . . . . . . 10 2 8 . Heavy 1 | . . . . . . 1 . . . Assembled 8 | . . . . 8 . . . . . Best Kill Streak 5 | 2 3 3 . 5 3 5 4 5 . Combat Bots Only 4 | . 3 3 . 4 3 4 1 3 . Max Kills in Single Turn 2 | 1 2 2 . 2 2 2 1 2 . Gunslinging 1 | . . . . 1 . . . . . Exploded 2 | . . 2 . . . 1 . 2 . Melee 1 | . . . . . . 1 . 1 . Uniques/NPCs Destroyed . | . . . . . . . . . . Combat | -11 -10 -10 -10 -9 -8 -7 -6 -5 -5 -------- Run | Yrd Mat Min Exi Min Mat Fac Fac Fac Upp Hostile Shots Fired 1158 | . 42 44 . 40 85 531 96 219 101 Missed 361 | . 13 5 . 8 20 184 41 65 25 Damage Taken 11142 | . 271 330 . 476 1078 4255 469 3102 1161 Core 2050 | . 56 88 . 103 296 449 53 706 299 Absorbed by Shields 979 | . . . . . 5 346 . 617 11 Redirected to Shielding 288 | . . . . 11 65 212 . . . Ignored by Resistances 446 | . . . . . . 446 . . . Core Remaining (%) 55 | 100 . . . 1 46 35 93 . . Volleys Fired 398 | 4 37 17 . 18 33 173 34 81 1 Largest 2 | 2 2 2 . 2 2 2 2 2 1 Hottest 160 | 60 90 90 . 53 122 160 78 114 35 Shots Fired 757 | 8 74 32 . 35 64 317 65 161 1 Gun 482 | 8 74 31 . 35 64 150 48 71 1 Cannon 265 | . . . . . . 158 17 90 . Launcher 10 | . . 1 . . . 9 . . . Special . | . . . . . . . . . . Kinetic 584 | 4 16 20 . 35 22 260 65 161 1 Thermal 107 | 4 16 . . . 42 45 . . . Explosive 10 | . . 1 . . . 9 . . . Electromagnetic 56 | . 42 11 . . . 3 . . . Robot Hit Streak 17 | 3 6 2 . 6 10 10 11 17 1 Robot Miss Streak 8 | 1 8 4 . 3 3 5 4 3 . Penetration Max 1 | . . . . . . 1 . 1 . Secondary Targets 5 | . 1 2 . 2 . . . . . Max Gunslinging Chain 1 | . 1 1 . 1 . . . . . Shots Hit Robots 492 | 4 36 11 . 23 44 199 43 131 1 Core Hits 237 | 4 18 7 . 17 22 103 22 44 . Critical Kills . | . . . . . . . . . . Critical Parts Destroyed 8 | . . . . . 2 2 1 3 . Critical Strikes 28 | . 2 . . . 3 13 3 7 . Burn 2 | . 1 . . . 1 . . . . Destroy 3 | . . . . . 1 1 1 . . Blast 16 | . . . . . . 10 2 4 . Corrupt 1 | . 1 . . . . . . . . Smash 6 | . . . . . 1 2 . 3 . Melee Attacks 79 | . . 2 . . 4 19 14 39 1 Impact 78 | . . 2 . . 4 19 14 38 1 Slashing 1 | . . . . . . . . 1 . Piercing . | . . . . . . . . . . Sneak Attacks 14 | . . . . . 1 8 2 3 . Combat Hostiles . | . . . . . . . . . . Follow-up Attacks . | . . . . . . . . . . Damage Inflicted 14319 | 45 559 278 . 468 922 6745 1135 4135 32 Guns 5832 | 45 559 208 . 468 856 1839 683 1145 29 Cannons 5063 | . . . . . . 2877 262 1924 . Explosions 1540 | . . 70 . . . 1206 . 264 . Melee 1866 | . . . . . 66 808 190 802 . Ramming 18 | . . . . . . 15 . . 3 Kinetic 8926 | . 105 169 . 468 273 3868 945 3069 29 Thermal 2341 | 45 164 . . . 583 1285 . 264 . Explosive 781 | . . 70 . . . 711 . . . Electromagnetic 387 | . 290 39 . . . 58 . . . Impact 1866 | . . . . . 66 808 190 802 . Slashing . | . . . . . . . . . . Piercing . | . . . . . . . . . . Highest Corruption 27 | . . . . 4 . 4 2 27 27 Average Corruption 9 | . . . . 4 . 2 1 15 27 Corruption Purged 5 | . . . . . . 3 2 . . Corruption Blocked . | . . . . . . . . . . Effects 138 | . . . . 1 . 20 8 100 9 Message Errors 30 | . . . . . . 3 3 22 2 Matter Fused 30 | . . . . . . 4 1 23 2 Heat Flow Errors 19 | . . . . . . 3 1 15 . Energy Discharges 21 | . . . . . . 5 . 14 2 Parts Rejected 2 | . . . . . . . . 2 . Parts Fused 1 | . . . . . . . . 1 . Data Loss (minor) 15 | . . . . 1 . . 3 10 1 Data Loss (major) 5 | . . . . . . 2 . 3 . Misfires 4 | . . . . . . 2 . 2 . Alerts 5 | . . . . . . . . 5 . Misdirections 3 | . . . . . . . . 1 2 Weapon Failures 3 | . . . . . . 1 . 2 . Overload Shots . | . . . . . . . . . . Overflow Damage 988 | . . . . . 66 447 57 418 . Projectiles 150 | . . . . . . 40 1 109 . Explosions 114 | . . . . . . 50 . 64 . Melee 724 | . . . . . 66 357 56 245 . Knockbacks 46 | . . . . . 1 24 3 18 . Impact 7 | . . . . . 1 2 1 3 . Kinetic 35 | . . . . . . 19 2 14 . Secondary 4 | . . . . . . 3 . 1 . Self-Inflicted Damage 484 | . . 21 . . . 301 . 161 1 Shots 7 | . . 1 . . . 4 . 2 . Rammed 2 | . . . . . . 1 . . 1 Targets Rammed 2 | . . . . . . 1 . . 1 Kicked . | . . . . . . . . . . Crushed . | . . . . . . . . . . Highest Temperature 913 | . 180 68 . 37 220 428 256 913 . Average Temperature 100 | . 50 34 . 24 69 97 55 156 . Received Heat Transfer 2064 | . 78 . . 82 600 577 81 646 . Effects 36 | . . . . . . 2 . 34 . Shutdowns 7 | . . . . . . 1 . 6 . Energy Bleed 3 | . . . . . . . . 3 . Interference 6 | . . . . . . 1 . 5 . Matter Decay 4 | . . . . . . . . 4 . Short Circuit 2 | . . . . . . . . 2 . Damage (minor) 6 | . . . . . . . . 6 . Damage (major) 7 | . . . . . . . . 7 . Damage (core) 1 | . . . . . . . . 1 . Siege Activations . | . . . . . . . . . . Robots Corrupted . | . . . . . . . . . . Combat Hostiles . | . . . . . . . . . . Parts Fried 15 | . 4 1 . . . 6 1 3 . Impact Corruptions 26 | . . . . . 3 12 2 9 . Robots Melted . | . . . . . . . . . . Combat Hostiles . | . . . . . . . . . . Parts Melted 5 | . 2 . . . . 3 . . . Heat Transferred 3900 | 100 555 . . . 1184 1961 . 100 . Parts Sabotaged . | . . . . . . . . . . Parts Stolen . | . . . . . . . . . . Parts Stripped . | . . . . . . . . . . Power Chain Reactions . | . . . . . . . . . . Alert | -11 -10 -10 -10 -9 -8 -7 -6 -5 -5 ------- Run | Yrd Mat Min Exi Min Mat Fac Fac Fac Upp Peak Influence 763 | 15 140 140 . 74 115 763 397 676 . Initial 373 | . 9 29 . . 7 37 373 182 . Average 217 | 9 37 76 . 43 43 236 257 392 . Maximum Alert Level 3 | . . . . . . 3 1 2 . Low Security (%) 61 | 100 100 100 . 100 100 68 43 5 . Level 1 20 | . . . . . . 2 56 58 . Level 2 17 | . . . . . . 27 . 35 . Level 3 . | . . . . . . 1 . . . Level 4 . | . . . . . . . . . . Level 5 . | . . . . . . . . . . High Security . | . . . . . . . . . . Max Security . | . . . . . . . . . . Squads Dispatched 39 | . 3 1 . . . 20 5 10 . Investigation 9 | . 2 1 . . . 3 1 2 . Extermination 14 | . . . . . . 9 2 3 . Reinforcement 13 | . 1 . . . . 7 2 3 . Assault 1 | . . . . . . 1 . . . Garrison 2 | . . . . . . . . 2 . Intercept . | . . . . . . . . . . Searches Triggered . | . . . . . . . . . . Construction Impeded 1 | . . . . . . 1 . . . Haulers Reinforced 3 | . . . . . . 1 1 1 . Active Scanning Responses . | . . . . . . . . . . Cargo Convoy Interrupts 1 | . . . . . . 1 . . . Stealth | -11 -10 -10 -10 -9 -8 -7 -6 -5 -5 --------- Run | Yrd Mat Min Exi Min Mat Fac Fac Fac Upp Distress Signals 8 | . 1 . . 1 . 4 . 2 . Communications Jammed . | . . . . . . . . . . Distress Signals . | . . . . . . . . . . Times Spotted 175 | . 13 8 . 13 13 65 14 42 7 Peak Tracking Total 10 | . 3 3 . 9 4 6 4 10 6 Tactical Retreats 13 | . 1 . . . 1 2 1 6 2 Traps | -11 -10 -10 -10 -9 -8 -7 -6 -5 -5 ------- Run | Yrd Mat Min Exi Min Mat Fac Fac Fac Upp Traps Triggered 7 | . 2 . . . . 5 . . . Indirectly . | . . . . . . . . . . Trap Hack Attempts . | . . . . . . . . . . Triggered . | . . . . . . . . . . Disarmed . | . . . . . . . . . . Reprogrammed . | . . . . . . . . . . Reused 1 | . . . . . 1 . . . . Traps Extracted . | . . . . . . . . . . Installed 1 | . . . . . 1 . . . . Triggered 3 | . . . . . 1 2 . . . Most Traps Carried 4 | . . 4 2 2 2 . . . . Machines | -11 -10 -10 -10 -9 -8 -7 -6 -5 -5 ---------- Run | Yrd Mat Min Exi Min Mat Fac Fac Fac Upp Machines Disabled 28 | . 1 . . . 1 18 1 6 1 Max in Single Turn 3 | . 1 . . . 1 2 1 3 1 Garrison Access 5 | . . . . . . 3 1 1 . Machines Repaired . | . . . . . . . . . . Machines Dismantled . | . . . . . . . . . . Machines Sabotaged . | . . . . . . . . . . Overloaded Fab Kills . | . . . . . . . . . . Hacking | -11 -10 -10 -10 -9 -8 -7 -6 -5 -5 --------- Run | Yrd Mat Min Exi Min Mat Fac Fac Fac Upp Machines Accessed 27 | . 5 1 1 . 2 12 2 3 1 Terminals 11 | . 3 . . . 2 5 1 . . Fabricators 4 | . . . . . . 3 . 1 . Repair Stations 1 | . . . . . . 1 . . . Recycling Units 3 | . 2 . . . . . . 1 . Scanalyzers . | . . . . . . . . . . Garrison Access 5 | . . . . . . 3 1 1 . Total Hacks 64 | . 11 1 1 . 4 33 4 9 1 Successful 33 | . 6 1 1 . 1 18 1 4 1 Failed 31 | . 5 . . . 3 15 3 5 . Catastrophic 6 | . . . . . . 3 1 2 . Database Lockouts . | . . . . . . . . . . Manual 46 | . 9 . 1 . 4 23 3 6 . Terminals 28 | . 7 . . . 4 15 2 . . Fabricators 13 | . . . . . . 9 . 4 . Repair Stations 3 | . . . . . . 3 . . . Recycling Units 7 | . 4 . . . . . . 3 . Scanalyzers . | . . . . . . . . . . Garrison Access 10 | . . . . . . 6 2 2 . Terminal Hacks 5 | . . 1 1 . . 2 . . 1 Open Door 2 | . . 1 . . . . . . 1 Terminal Index 1 | . . . . . . 1 . . . Locate Traps 1 | . . . . . . 1 . . . Derelict Proto ID Bank 1 | . . . 1 . . . . . . Fabricator Hacks . | . . . . . . . . . . Repair Station Hacks 1 | . . . . . . 1 . . . Scan Component 1 | . . . . . . 1 . . . Recycling Unit Hacks . | . . . . . . . . . . Scanalyzer . | . . . . . . . . . . Garrison Access Hacks 3 | . . . . . . 3 . . . Seal Access 3 | . . . . . . 3 . . . Unauthorized Hacks 24 | . 6 . . . 1 12 1 4 . Terminals 13 | . 4 . . . 1 8 . . . Track 5 | . 2 . . . 1 2 . . . Assimilate 1 | . . . . . . 1 . . . Botnet 6 | . 2 . . . . 4 . . . Operators 1 | . . . . . . 1 . . . Fabricators 6 | . . . . . . 4 . 2 . Liberate 3 | . . . . . . 2 . 1 . Fabnet 3 | . . . . . . 2 . 1 . Repair Stations . | . . . . . . . . . . Recycling Units 3 | . 2 . . . . . . 1 . Monitor 1 | . 1 . . . . . . . . Recyclers 1 | . 1 . . . . . . . . Mask 1 | . . . . . . . . 1 . Scanalyzers . | . . . . . . . . . . Garrison Access 2 | . . . . . . . 1 1 . Jam 2 | . . . . . . . 1 1 . Data Cores Recovered . | . . . . . . . . . . Used . | . . . . . . . . . . Hacking Detections 19 | . 4 . . . 2 8 2 3 . Full Trace Events 2 | . . . . . . 1 . 1 . Feedback Events . | . . . . . . . . . . Feedback Blocked . | . . . . . . . . . . Robot Schematics Acquired . | . . . . . . . . . . Robots Built . | . . . . . . . . . . Authchips . | . . . . . . . . . . Time . | . . . . . . . . . . Total Robot Build Rating . | . . . . . . . . . . Part Schematics Acquired . | . . . . . . . . . . Parts Built . | . . . . . . . . . . Authchips . | . . . . . . . . . . Time . | . . . . . . . . . . Total Part Build Rating . | . . . . . . . . . . Parts Repaired . | . . . . . . . . . . Time . | . . . . . . . . . . Parts Recycled . | . . . . . . . . . . Recycled Matter . | . . . . . . . . . . Retrieved Matter . | . . . . . . . . . . Retrieved Components . | . . . . . . . . . . Parts Scanalyzed . | . . . . . . . . . . Part Schematics Acquired . | . . . . . . . . . . Parts Damaged . | . . . . . . . . . . Bothacking | -11 -10 -10 -10 -9 -8 -7 -6 -5 -5 ------------ Run | Yrd Mat Min Exi Min Mat Fac Fac Fac Upp Used RIF Installer . | . . . . . . . . . . Robots Hacked 3 | . . . . . . . 1 2 . Non-combat . | . . . . . . . . . . Combat 3 | . . . . . . . 1 2 . Robot Hacks Applied . | . . . . . . . . . . Relay Couplers Released . | . . . . . . . . . . Fabnet Peak Effective % 6 | . . . . . . . 6 2 2 Autooverrided 3 | . . . . . . . 1 2 . Robots Rewired . | . . . . . . . . . . Allies Hacked . | . . . . . . . . . . Hacks Repelled . | . . . . . . . . . . Allies | -11 -10 -10 -10 -9 -8 -7 -6 -5 -5 -------- Run | Yrd Mat Min Exi Min Mat Fac Fac Fac Upp Total Allies 15 | . . 3 . . . 9 1 2 . Largest Group 3 | . . 3 3 1 . 3 1 1 . Highest-Rated Group 90 | . . 40 40 16 . 90 29 49 . Highest-Rated Ally 49 | . . 16 16 16 . 30 29 49 . Total Orders . | . . . . . . . . . . Ally Attacks 64 | . . 9 . 4 . 43 5 3 . Total Damage 743 | . . 91 . 47 . 505 76 24 . Kills 5 | . . 1 . 1 . 3 . . . Allies Corrupted . | . . . . . . . . . . Allies Melted . | . . . . . . . . . . Intel | -11 -10 -10 -10 -9 -8 -7 -6 -5 -5 ------- Run | Yrd Mat Min Exi Min Mat Fac Fac Fac Upp Robot Analysis Total . | . . . . . . . . . . Derelict Logs Recovered 5 | . . 2 . 1 . . . . 2 Drone Launches . | . . . . . . . . . . Drone Recoveries . | . . . . . . . . . . Exploration | -11 -10 -10 -10 -9 -8 -7 -6 -5 -5 ------------- Run | Yrd Mat Min Exi Min Mat Fac Fac Fac Upp Turns Passed 15441 | 57 1816 906 346 279 1106 5807 1981 2945 198 Spaces Moved 7186 | 21 709 586 247 151 516 2837 679 1077 363 Core 116 | . . . . . . . . 107 9 Treads 1751 | . . . . . . 106 679 966 . Legs 514 | 21 400 . . . . 93 . . . Wheels 4447 | . 309 586 247 151 516 2638 . . . Hover 4 | . . . . . . . . 4 . Flight 354 | . . . . . . . . . 354 Fastest Speed 40 | 120 120 130 140 135 135 116 240 50 40 Average Speed 161 | 120 141 136 140 140 138 149 253 222 47 Slowest Speed 1000 | 120 190 140 140 215 175 570 320 1000 350 Overloaded Moves . | . . . . . . . . . . Propulsion Burnouts . | . . . . . . . . . . Robots Hopped . | . . . . . . . . . . Cave-ins Triggered . | . . . . . . . . . . Exploration Rate (%) 46 | 3 51 97 69 47 32 64 14 32 55 Regions Visited 9 Branch Regions 4 Pre-discovered Areas 1 | . . 1 . . . . . . . Known Exits Taken 2 | . . . . . 1 . 1 . . Unknown Exits Taken 7 | 1 1 1 1 1 . 1 . 1 . Scrap Searched 7 | . . 3 . 2 . . . . 2 Spaces Dug 40 | . . 2 . 1 2 7 12 16 . Terrain Destroyed 312 | . . 8 . 1 4 195 18 86 . Melee 37 | . . 2 . . 2 5 12 16 . Projectile 78 | . . 2 . 1 2 32 6 35 . AOE 197 | . . 4 . . . 158 . 35 . Terrain Rammed . | . . . . . . . . . . Walls Destroyed . | . . . . . . . . . . Machines Disabled . | . . . . . . . . . . Actions | -11 -10 -10 -10 -9 -8 -7 -6 -5 -5 --------- Run | Yrd Mat Min Exi Min Mat Fac Fac Fac Upp Total 10129 | 45 1448 661 248 182 834 4075 853 1398 385 Wait 2023 | 14 666 24 . 6 219 895 75 122 2 Move 7177 | 20 708 585 246 150 515 2836 678 1076 363 Hop . | . . . . . . . . . . Pick Up 146 | 4 17 14 1 1 24 40 21 19 5 Fast Attach 37 | 1 2 1 . 2 . 18 2 5 6 Attach 64 | . 1 5 . 2 13 24 4 10 5 Detach 4 | . 1 . . . . 2 . 1 . Swap 91 | . 7 5 . 2 14 30 12 21 . Drop 105 | 2 9 8 1 1 11 35 13 24 1 Fire 398 | 4 37 17 . 18 33 173 34 81 1 Melee 79 | . . 2 . . 4 19 14 39 1 Ram 2 | . . . . . . 1 . . 1 Kick . | . . . . . . . . . . Crush . | . . . . . . . . . . Escape Stasis 2 | . . . . . . 2 . . . Rewire . | . . . . . . . . . . Trap 1 | . . . . . 1 . . . . Miscellaneous . | . . . . . . . . . . Route ------- -11/Scrapyard -10/Materials -10/Mines (discovered 3 exits: [*Mat x2] / *Exi) -10/Exiles -9/Mines -8/Materials (discovered 2 exits: *Fac x2) -7/Factory -6/Factory (discovered 2 exits: *Fac / *Low) -5/Factory (discovered 2 exits: *Fac / *Upp) -5/Upper Caves History --------- Turn | Location | Event 12 | -11/Scrapyard | Discovered new exit (range 3) 58 | -11/Scrapyard | Entered Materials 306 | -10/Materials | Build established: Mutant 866 | -10/Materials | Discovered new exit (range 14) 1874 | -10/Materials | Entered Mines 1904 | -10/Mines | Found a damaged Exp. Sensor Array with a note attached 1907 | -10/Mines | Found Prototype Device 2021 | -10/Mines | Found a hidden stash of uninstalled traps 2049 | -10/Mines | A weapon hastily lodged in a ceiling crevice suddenly fell to the ground 2071 | -10/Mines | Discovered new exit (range 8) 2096 | -10/Mines | Core integrity fell below 50% 2121 | -10/Mines | Lost 4 parts (1p2n1w) 2167 | -10/Mines | Discovered new exit (range 11) 2176 | -10/Mines | Assisted by bots powering up and referring to "LRC-V3" 2386 | -10/Mines | Learned 2 Materials zone layouts 2403 | -10/Mines | Deemed a non-threat by the Exiles lab entrance 2434 | -10/Mines | Met a Derelict shopkeep closing up shop 2654 | -10/Mines | Received a Rocket Launcher from a helpful Derelict 2769 | -10/Mines | Discovered new exit (range 5) 2780 | -10/Mines | Entered Exiles 2780 | -10/Exiles | Accompanied by 3 allies 2814 | -10/Exiles | Met 8R-AWN 2838 | -10/Exiles | Met EX-HEX 2876 | -10/Exiles | Met EX-BIN 2894 | -10/Exiles | Aligned with FarCom system 2895 | -10/Exiles | Given EX-Vault access code 2930 | -10/Exiles | Opened EX-Vault 2938 | -10/Exiles | Found 0b10 Alert Chip 2968 | -10/Exiles | Warned to stay clear of 0b10 Research branches 2989 | -10/Exiles | Exiles lab attacked by MAIN.C 3112 | -10/Exiles | Discovered new exit (range 12) 3126 | -10/Exiles | Left Exiles lab with 0b10 Alert Chip 3126 | -10/Exiles | Entered Mines 3126 | -9/Mines | Accompanied by 3 allies 3179 | -9/Mines | Learned location of 1 exit from Lower Caves 3229 | -9/Mines | Assembled infested the area 3280 | -9/Mines | Core integrity fell below 20% 3318 | -9/Mines | Lost 4 parts (1p2n1w) 3378 | -9/Mines | Discovered new exit (range 16) 3405 | -9/Mines | Entered Materials 3405 | -8/Materials | Evolved 4 slots: Utility x4 3406 | -8/Materials | Identified exit to Factory 3694 | -8/Materials | Lost 3 parts (1p2n) 3823 | -8/Materials | Lost 6 parts (1n3u2w) 4216 | -8/Materials | Core integrity fell below 50% 4310 | -8/Materials | Discovered exit to Factory (range 16) 4511 | -8/Materials | Entered Factory 4511 | -7/Factory | Evolved 2 slots: Propulsion x1, Utility x1 4802 | -7/Factory | Build established: Skirmisher 5392 | -7/Factory | Lost 3 parts (1p2n) 6000 | -7/Factory | Cargo convoy interrupted 7618 | -7/Factory | Found Prototype Launcher 8836 | -7/Factory | Lost 6 parts (1p2n1u2w) 9073 | -7/Factory | Build established: Mutant 9711 | -7/Factory | First assault squad dispatched 9836 | -7/Factory | Lost 7 parts (1p2n4u) 9991 | -7/Factory | Core integrity fell below 50% 10045 | -7/Factory | Lost 5 parts (1p2n1u1w) 10048 | -7/Factory | Discovered new exit (range 16) 10318 | -7/Factory | Entered another Factory area 10318 | -6/Factory | Evolved 2 slots: Power x1, Utility x1 10404 | -6/Factory | Discovered new exit (range 7) 10473 | -6/Factory | Identified exit to Lower Caves 10741 | -6/Factory | Build established: Scavenger-Mutant 11986 | -6/Factory | Discovered new exit (range 15) 12296 | -6/Factory | Identified exit to Factory 12299 | -6/Factory | Entered another Factory area 12299 | -5/Factory | Evolved 2 slots: Utility x2 12369 | -5/Factory | Garrison activated, responded to threat 12491 | -5/Factory | Garrison activated, responded to threat 12760 | -5/Factory | Build established: Scavenger-Skirmisher 13846 | -5/Factory | Build established: Assassin 13986 | -5/Factory | System corruption reached 10% 14155 | -5/Factory | Lost 4 parts (4u) 14418 | -5/Factory | Build established: Mutant 14577 | -5/Factory | Discovered new exit (range 5) 14590 | -5/Factory | Identified exit to Factory 15045 | -5/Factory | Build established: Assassin 15187 | -5/Factory | Core integrity fell below 50% 15222 | -5/Factory | Lost 5 parts (1p1n2u1w) 15238 | -5/Factory | Discovered new exit (range 13) 15244 | -5/Factory | Entered Upper Caves 15273 | -5/Upper Caves | Found Alien Artifact 15273 | -5/Upper Caves | Identified Dimensional Node Initializer 15273 | -5/Upper Caves | Initialized slip node 15346 | -5/Upper Caves | Attracted the attention of an 0b10 checkpoint 15378 | -5/Upper Caves | Learned 8 Factory zone layouts 15386 | -5/Upper Caves | Learned Factory security intel 15425 | -5/Upper Caves | Core integrity fell below 20% 15442 | -5/Upper Caves | Destroyed by S-27 Virus with Autogun Last Messages --------------- 15346_ Y-64 Sentinel: "INTERCEPTING UNREGISTERED DERELICT." 15365_ System corrupted: Matter fused (-10). 15378_ Acquired derelict log, extracted data. Data stored: Factory zone layouts (x8). 15381_ System corrupted: Energy discharge (-20). 15386_ Acquired derelict log, extracted data. Data stored: Factory security intel. 15397_ System corrupted: Energy discharge (-35). 15408_ Slammed into S-27 Virus. 15412_ Armor Integrity Analyzer destroyed. 15413_ DWMXPJ5L9VVBJJAT6HUEJ#BUNM/N4K 15414_ Lrn. Tractor Beam destroyed. 15421_ System corrupted: Slammed into wall. 15425_ Nuclear Pulse Array destroyed. 15428_ System corrupted: Matter fused (-5). 15437_ Mak. Light Armor Plating destroyed. 15438_ Powered Hammer destroyed. 15439_ Railgun destroyed. 15439_ Adv. Shield Generator destroyed. 15442_ Imp. Launcher Guidance Computer destroyed. Map ----- +----------------------------------------------------+ | | | | | | | | | ?????????????????????????????????????????????? | | ?????????????????????????????????????????????? | | ?????????????????????????????????????????????? | | ?????????????????????????????????????????????? | | ?????????????????????????????????????????????? | | ?????????????????????????????????????????????? | | ?????????????????????????????????????????????? | | ?????????????????????????????????????????????? | | ?????????????????????????????????????????????? | | ?????????????????????????????????????????????? | | ?????????????????????????????????????????????? | | ?????????????????????????????????????????????? | | ?????????????????????????????????????????????? | | ?????????????????????????????????????????????? | | ???????????????????????????????????####??????? | | ??????????????????????????????###??# ###????? | | ?????????????????????????###### #??# ##???? | | ????????????????????????## #??# ##??? | | ???????????????????????## ss #??## #??? | | ??????????????????????## s s##??# ###??# | | ??????????????????##### s ##?# ##????# | | ??????????????????# @ ### ### #?????# | | ??????????????????# #?## ##????# | | ??????????????????## #??## ###??# | | ???????????????????### #??## #### | | ?????????????????????# #######???## ## | | ?????????????????????###??????????# | | ?????????????????????????????????# | | ??????????????????????????? | | ??????????????????????????? | | ???????????????????????????? ## | | ??????????????????????????? ####?#### ## | | ??????????????????????????? ????????## ##? | | ???????????????????????????? ??????????####?? | | ?????????????????????????????????????????????? | | ?????????????????????????????????????????????? | | ?????????????????????????????????????????????? | | ?????????????????????????????????????????????? | | ?????????????????????????????????????????????? | | ?????????????????????????????????????????????? | | ?????????????????????????????????????????????? | | ?????????????????????????????????????????????? | | ?????????????????????????????????????????????? | | ?????????????????????????????????????????????? | | ?????????????????????????????????????????????? | | ?????????????????????????????????????????????? | +----------------------------------------------------+ Best States ------------- Heat Dissipation 53 Coolant Potential 80 Energy Generation 31 Energy Capacity 990 Matter Stores 300 Matter Capacity 300 Sight Range 22 Terrain Scan Range 16 Terrain Scan Density 110 Additional Mass Support 9 Armor Coverage 825 Resistance: KI 30 Power Shielding 66 Utility Shielding 33 Weapon Shielding 66 Evasion (%) 62 Targeting Accuracy 8 Melee Accuracy 8 Launcher Accuracy 30 Core Analysis 6 Armor Integrity Analysis 40 Recoil Reduction 3 Energy Filtering 50 Kinecelleration 30 Item Schematics ----------------- None Robot Schematics ------------------ None Fabricated ------------ Nothing Alien Tech Used ----------------- Dimensional Node Initializer Achievements -------------- None Challenges ------------ None Game ------ Seed ImpactEncryptedBank Manual? 0 Play Time 03:01:42 Cumulative 219.8 hours Start 2024.06.28 @ 12:42:00 End 2024.06.30 @ 16:08:50 Sessions 5 Manual Loads 0 Difficulty Rogue Special Mode None Game No. 161 Rogue 151 Adventurer 4 Explorer 6 Win Type - Total 4 Types 4/0/0/0/0/0/0/0/0 Lore% 47 Gallery% 62 Achievement% 48 Wizard Run 0 Options --------- Layout 0 ASCII 0 Keyboard 0 Movement Numpad Keybinds 0 Fullscreen 2 Font 24/Smallcaps Map View 113x50 Zoom Use 0% Tactical HUD 1 Map Filters NONE Filters NONE Steam 1 RUN: c561e9c8-35f2-42f7-812c-fb76f34b674f